bitfinex/quotes_SOLUSD_20260311
["timestamp","ask_amount","ask_price","bid_price","bid_amount"]
[1773199527275,0.84646351,85.639,85.61,0.90065512]
[1773199527495,0.84646351,85.637,85.61,0.90065512]
[1773199527673,0.84646351,85.637,85.611,11.68074196]
[1773199529671,0.84646351,85.637,85.611,12.58139708]
[1773199531072,0.84646351,85.635,85.612,0.90065512]
[1773199531278,0.84646351,85.635,85.602,0.90065512]
[1773199532066,0.84646351,85.633,85.604,0.90065512]
[1773199532985,0.84646351,85.609,85.566,0.90065512]
[1773199533284,0.84646351,85.599,85.571,0.90065512]
[1773199534072,0.84646351,85.609,85.58,3.14282747]
[1773199534275,0.84646351,85.619,85.581,0.90065512]
[1773199534470,0.84646351,85.609,85.581,0.90065512]
[1773199535875,0.84646351,85.609,85.58,3.14282747]
[1773199535876,0.84646351,85.608,85.583,0.90065512]
[1773199538888,0.84646351,85.608,85.584,11.68442699]
[1773199539083,0.84646351,85.608,85.585,0.83351045]
[1773199540804,0.84646351,85.608,85.587,0.83351045]
[1773199540976,103.8,85.622,85.591,0.83351045]
[1773199541291,3.99164692,85.62,85.591,0.83351045]
[1773199541495,0.84881945,85.619,85.591,0.83351045]
[1773199543765,0.84881945,85.619,85.592,11.68333489]
[1773199544081,0.84881945,85.619,85.593,0.83351045]
[1773199544876,0.84881945,85.617,85.595,0.83351045]
[1773199546403,0.84881945,85.615,85.595,0.83351045]
[1773199547793,0.84881945,85.615,85.597,0.83351045]
[1773199550910,103.8,85.622,85.588,0.87076312]
[1773199550911,3.14282747,85.61,85.588,0.87076312]
[1773199551083,0.83162725,85.609,85.588,0.87076312]
[1773199551691,0.83162725,85.609,85.582,0.87076312]
[1773199552005,0.83162725,85.599,85.582,0.87076312]
[1773199552789,0.83162725,85.599,85.582,12.55537451]
[1773199553898,0.83162725,85.599,85.583,0.87076312]
[1773199556082,3.14282747,85.62,85.591,0.87076312]
[1773199556284,0.83162725,85.619,85.591,0.87076312]
[1773199558993,11.67978696,85.618,85.592,11.68333489]
[1773199559300,0.83162725,85.617,85.593,0.87076312]
[1773199561184,103.8,85.622,85.595,0.87076312]
[1773199561388,103.8,85.622,85.601,0.87076312]
[1773199561800,103.8,85.622,85.6,3.14282747]
[1773199561801,98.58930955,85.622,85.611,0.87076312]
[1773199561983,12.50890318,85.637,85.611,0.87076312]
[1773199562179,0.83162725,85.636,85.611,0.87076312]
[1773199563784,0.83162725,85.636,85.61,3.14282747]
[1773199563785,0.83162725,85.636,85.613,0.87076312]
[1773199565097,0.83162725,85.656,85.613,0.87076312]
[1773199565301,0.83162725,85.649,85.613,0.87076312]
[1773199565497,0.83162725,85.639,85.613,0.87076312]
[1773199566004,11.67705924,85.638,85.613,0.87076312]
[1773199566209,0.83162725,85.637,85.613,0.87076312]
[1773199566917,0.83162725,85.637,85.615,0.87076312]
[1773199568389,0.83162725,85.635,85.615,0.87076312]
[1773199568601,0.83162725,85.635,85.609,0.87076312]
[1773199569110,0.83162725,85.629,85.609,0.87076312]
[1773199569306,0.83162725,85.629,85.601,0.87076312]
[1773199569486,0.83162725,85.619,85.596,0.87076312]
[1773199574108,0.83162725,85.618,85.597,11.68265242]
[1773199574313,0.83162725,85.618,85.598,0.87076312]
[1773199577111,0.83162725,85.618,85.599,11.68237946]
[1773199577413,0.83162725,85.623,85.601,0.87076312]
[1773199578917,0.83162725,85.623,85.603,0.87076312]
[1773199579918,0.90256069,85.631,85.603,0.87076312]
[1773199581512,0.90256069,85.631,85.605,0.84954994]
[1773199583122,0.90256069,85.631,85.607,0.84954994]
[1773199586127,0.90256069,85.631,85.609,0.84954994]
[1773199589228,0.90256069,85.631,85.611,0.84954994]
[1773199592106,0.90256069,85.631,85.613,0.84954994]
[1773199595021,0.90256069,85.631,85.614,11.68033265]
[1773199595213,0.90256069,85.631,85.615,0.84954994]
[1773199597820,0.84045564,85.638,85.616,11.6800598]
[1773199598029,0.84045564,85.636,85.617,0.90032333]
[1773199600720,11.67746832,85.635,85.617,0.90032333]
[1773199601032,11.67746832,85.635,85.612,11.68058759]
[1773199601033,0.84045564,85.634,85.613,0.90032333]
[1773199607745,0.84045564,85.634,85.615,0.90032333]
[1773199610847,12.51816696,85.634,85.615,0.90032333]
[1773199611147,0.8773845,85.633,85.615,0.90032333]
[1773199614553,0.8773845,85.633,85.616,11.6800598]
[1773199614850,0.8773845,85.633,85.617,0.87050953]
[1773199616156,0.8773845,85.633,85.619,0.87050953]
[1773199620860,12.55522036,85.633,85.619,0.87050953]
[1773199621048,0.8773845,85.632,85.604,0.87050953]
[1773199624744,98.58930955,85.649,85.571,61.2]
[1773199624745,0.8773845,85.629,85.589,0.87050953]
[1773199625088,0.8773845,85.629,85.591,0.87050953]
[1773199625264,0.8773845,85.629,85.601,0.87050953]
[1773199627670,0.8773845,85.633,85.603,0.87050953]
[1773199628755,0.8773845,85.633,85.604,11.68169711]
[1773199628960,0.8773845,85.633,85.605,0.87050953]
[1773199630269,11.67787742,85.632,85.605,0.87050953]
[1773199630475,0.8773845,85.629,85.605,0.87050953]
[1773199631054,0.8773845,85.629,85.606,11.68142419]
[1773199631374,0.8773845,85.629,85.607,0.87050953]
[1773199632673,0.8773845,85.627,85.607,0.87050953]
[1773199634764,0.8773845,85.627,85.609,0.87050953]
[1773199634952,0.8773845,85.632,85.609,0.87050953]
[1773199636061,0.8773845,85.632,85.611,0.87050953]
[1773199650165,0.84644776,85.63,85.611,0.87050953]
[1773199650880,0.84644776,85.63,85.61,11.6808784]
[1773199651185,0.84644776,85.628,85.606,11.68134006]
[1773199652265,0.84644776,85.628,85.606,12.54137732]
[1773199652469,0.84644776,85.628,85.607,0.86003726]
[1773199653582,0.84644776,85.638,85.611,0.86003726]
[1773199654887,0.84644776,85.638,85.613,0.86003726]
[1773199656166,0.84644776,85.637,85.613,0.86003726]
[1773199658290,0.84644776,85.637,85.615,0.86219072]
[1773199658489,98.58930955,85.669,85.615,0.86219072]
[1773199658687,0.86902497,85.674,85.651,0.86219072]
[1773199659194,0.86902497,85.673,85.651,0.86219072]
[1773199660699,0.86902497,85.671,85.651,0.86219072]
[1773199660906,0.86902497,85.671,85.651,12.53734731]
[1773199661080,0.86902497,85.671,85.652,0.86219072]
[1773199661577,0.86902497,85.659,85.631,0.86219072]
[1773199662794,0.86902497,85.651,85.633,0.86219072]
[1773199665401,0.86902497,85.651,85.632,11.67787742]
[1773199665402,0.86902497,85.651,85.634,12.5397954]
[1773199666477,0.86902497,85.651,85.634,0.86219072]
[1773199671311,0.89976673,85.649,85.621,0.84019138]
[1773199671797,0.89976673,85.649,85.631,0.84019138]
[1773199672906,0.89976673,85.649,85.633,0.84019138]
[1773199673292,0.89976673,85.659,85.633,0.84019138]
[1773199673487,0.89976673,85.659,85.627,0.84019138]
[1773199673694,0.89976673,85.649,85.62,3.14410416]
[1773199674011,0.89976673,85.649,85.618,0.84019138]
[1773199674895,0.89976673,85.647,85.621,11.67937772]
[1773199675115,0.89976673,85.647,85.621,12.5195691]
[1773199677706,0.89976673,85.639,85.611,0.84019138]
[1773199677900,0.89976673,85.639,85.612,0.84019138]
[1773199678720,0.89976673,85.639,85.62,3.14410416]
[1773199678902,0.89976673,85.639,85.62,3.98429554]
[1773199679632,0.89976673,85.639,85.621,0.84019138]
[1773199681719,0.89976673,85.639,85.623,0.84019138]
[1773199691426,0.89976673,85.639,85.622,11.67924131]
[1773199692022,0.89976673,85.639,85.622,12.51943269]
[1773199693924,0.89976673,85.639,85.623,0.84019138]
[1773199696207,0.89976673,85.639,85.62,3.14304223]
[1773199696208,0.89976673,85.647,85.625,0.84019138]
[1773199700212,0.90276853,85.645,85.625,0.84019138]
[1773199701724,0.90276853,85.643,85.62,0.84042918]
[1773199702226,0.90276853,85.643,85.621,0.84042918]
[1773199702526,0.90276853,85.629,85.592,0.84042918]
[1773199703109,0.90276853,85.619,85.592,0.84042918]
[1773199703417,0.90276853,85.619,85.583,0.84042918]
[1773199703613,0.90276853,85.609,85.578,0.84042918]
[1773199703812,0.90276853,85.607,85.579,11.68510966]
[1773199705028,0.90276853,85.607,85.579,12.52553884]
[1773199707222,0.90276853,85.605,85.571,12.52663128]
[1773199707414,0.90276853,85.589,85.564,0.84042918]
[1773199708828,3.14304223,85.6,85.571,0.84042918]
[1773199709930,11.67992337,85.617,85.581,0.84042918]
[1773199710316,3.14304223,85.61,85.581,0.84042918]
[1773199710713,0.90276853,85.607,85.583,0.84042918]
[1773199713324,12.58419272,85.606,85.583,0.84042918]
[1773199713917,0.90276853,85.605,85.583,0.84042918]
[1773199718019,0.83638394,85.603,85.583,0.84042918]
[1773199720421,3.14304223,85.6,85.583,0.84042918]
[1773199721336,0.83638394,85.603,85.583,0.84042918]
[1773199723140,0.83638394,85.614,85.591,0.87964581]
[1773199723436,0.83638394,85.609,85.585,0.87964581]
[1773199723643,0.83638394,85.599,85.585,0.87964581]
[1773199724937,0.83638394,85.605,85.585,0.87964581]
[1773199725121,0.83638394,85.609,85.587,0.87964581]
[1773199725727,0.83638394,85.614,85.591,0.87964581]
[1773199727126,0.83638394,85.614,85.592,0.87964581]
[1773199728444,0.83638394,85.612,85.592,0.87964581]
[1773199734336,0.87654089,85.609,85.587,0.88427897]
[1773199738655,0.87654089,85.607,85.589,0.88427897]
[1773199740656,0.87654089,85.605,85.584,0.88427897]
[1773199741152,0.87654089,85.605,85.577,0.88427897]
[1773199741356,0.87654089,85.599,85.577,0.88427897]
[1773199741961,3.14304223,85.59,85.565,11.68699239]
[1773199742269,0.87654089,85.589,85.565,11.68699239]
[1773199744058,0.87654089,85.589,85.568,0.88427897]
[1773199744660,0.87654089,85.587,85.568,0.88427897]
[1773199746440,0.87654089,85.587,85.569,11.68647524]
[1773199746658,0.87654089,85.585,85.564,0.88427897]
[1773199749360,0.87654089,85.585,85.566,0.88427897]
[1773199750170,0.87654089,85.579,85.561,11.68756438]
[1773199750663,0.87654089,85.579,85.56,0.1]
[1773199750861,0.87654089,85.579,85.56,0.98427897]
[1773199752454,0.87654089,85.579,85.561,11.68756793]
[1773199752858,0.87654089,85.579,85.562,0.88427897]
[1773199753957,0.87654089,85.589,85.562,0.88427897]
[1773199754765,0.87654089,85.589,85.563,11.68729474]
[1773199755062,0.87654089,85.589,85.564,0.88427897]
[1773199759570,0.87654089,85.589,85.566,0.82970507]
[1773199765584,0.91551964,85.594,85.571,0.82970507]
[1773199769866,0.91551964,85.593,85.573,0.82970507]
[1773199772767,0.91551964,85.593,85.566,29.21705969]
[1773199772768,11.68287666,85.596,85.575,0.82970507]
[1773199773274,0.91551964,85.595,85.575,0.82970507]
[1773199779573,0.91551964,85.595,85.568,11.68661181]
[1773199779773,0.91551964,85.595,85.568,12.51631688]
[1773199780085,0.91551964,85.595,85.569,0.82970507]
[1773199780790,0.87720981,85.608,85.581,0.87647115]
[1773199781892,0.87720981,85.606,85.583,0.87647115]
[1773199785890,98.58930955,85.609,85.59,3.14769077]
[1773199786092,0.87720981,85.616,85.591,0.87647115]
[1773199787396,0.87720981,85.616,85.593,0.87647115]
[1773199790392,0.87720981,85.616,85.6,3.14769077]
[1773199791881,0.84745457,85.614,85.591,0.83807265]
[1773199794891,0.84745457,85.614,85.593,0.83807265]
[1773199796600,0.84745457,85.612,85.582,0.83807265]
[1773199797305,0.84745457,85.612,85.584,0.83807265]
[1773199797493,3.14769077,85.62,85.584,0.83807265]
[1773199797494,0.84745457,85.61,85.584,0.83807265]
[1773199797894,0.84745457,85.61,85.582,11.68469458]
[1773199798200,0.84745457,85.61,85.582,12.52276723]
[1773199798504,0.84745457,85.61,85.583,0.83807265]
[1773199798802,0.84745457,85.599,85.567,0.83807265]
[1773199799005,0.84745457,85.599,85.562,0.83807265]
[1773199799509,0.84745457,85.599,85.56,3.24769077]
[1773199799510,0.84745457,85.597,85.564,0.83807265]
[1773199803413,0.84745457,85.609,85.581,0.83807265]
[1773199804590,0.84745457,85.607,85.583,0.83807265]
[1773199805302,0.84745457,85.607,85.582,11.68470005]
[1773199805303,0.84745457,85.607,85.591,0.83807265]
[1773199805601,0.84745457,85.616,85.591,0.83807265]
[1773199805915,0.84745457,85.609,85.583,0.83807265]
[1773199806691,3.14769077,85.6,85.577,11.68531184]
[1773199806917,0.84745457,85.599,85.571,11.68612944]
[1773199808218,0.84745457,85.599,85.572,0.83807265]
[1773199808729,0.84745457,85.597,85.572,0.83807265]
[1773199809321,0.84745457,85.597,85.573,12.52400162]
[1773199811020,0.84745457,85.595,85.573,0.83807265]
[1773199816319,98.58930955,85.607,85.583,0.83807265]
[1773199817806,11.68142419,85.606,85.57,3.98480685]
[1773199818006,3.1467342,85.6,85.571,0.83807265]
[1773199818223,0.84745457,85.599,85.571,0.83807265]
[1773199818933,0.84745457,85.599,85.572,0.83807265]
[1773199819112,0.84745457,85.599,85.574,0.83807265]
[1773199819315,111.11809964,85.607,85.581,0.83807265]
[1773199822823,111.11809964,85.607,85.583,0.83680592]
[1773199824835,0.87179434,85.606,85.583,0.83680592]
[1773199825412,0.87179434,85.606,85.574,0.83680592]
[1773199825614,0.87179434,85.599,85.574,0.83680592]
[1773199826910,0.87179434,85.598,85.574,0.83680592]
[1773199828012,0.87179434,85.598,85.575,0.83680592]
[1773199830823,0.87179434,85.596,85.576,11.6855193]
[1773199831024,0.87179434,85.596,85.576,12.52232522]
[1773199831833,0.87179434,85.596,85.577,0.83680592]
[1773199832533,127.79252891,85.607,85.581,0.83680592]
[1773199832534,98.58930955,85.607,85.581,0.83680592]
[1773199832942,0.87179434,85.606,85.583,0.83680592]
[1773199833946,0.87179434,85.615,85.591,0.83680592]
[1773199835230,0.87179434,85.615,85.593,0.83680592]
[1773199835436,0.87179434,85.62,85.601,0.83680592]
[1773199836827,0.87179434,85.62,85.602,11.68197004]
[1773199837021,0.87179434,85.62,85.602,12.51877596]
[1773199838137,0.87179434,85.62,85.603,0.89486783]
[1773199838332,0.86051814,85.629,85.603,0.89486783]
[1773199838535,11.67677217,85.641,85.621,0.89486783]
[1773199838845,0.86051814,85.64,85.621,0.89486783]
[1773199839843,11.67692289,85.639,85.621,0.89486783]
[1773199840038,0.86051814,85.638,85.621,0.89486783]
[1773199841438,0.86051814,85.649,85.63,3.1467342]
[1773199842130,0.86051814,85.648,85.628,0.89486783]
[1773199844123,0.86051814,85.648,85.623,11.67909268]
[1773199844441,0.86051814,85.639,85.616,0.89486783]
[1773199844624,11.67583219,85.647,85.617,11.67992337]
[1773199844825,11.67583219,85.647,85.621,0.89486783]
[1773199846725,0.44558495,85.646,85.622,11.67924131]
[1773199846941,0.44558495,85.646,85.623,0.89486783]
[1773199848945,0.44645287,85.644,85.623,0.89486783]
[1773199850347,0.44727948,85.642,85.623,0.89486783]
[1773199852544,0.44848124,85.647,85.623,0.89486783]
[1773199852766,3.59521544,85.66,85.631,0.83003684]
[1773199852962,0.44848124,85.659,85.631,0.83003684]
[1773199854462,0.44926553,85.639,85.601,0.83003684]
[1773199854637,29.18895635,85.649,85.611,0.90574814]
[1773199854952,3.1467342,85.64,85.611,0.90574814]
[1773199855137,29.18895635,85.649,85.611,0.90574814]
[1773199855853,11.67569587,85.648,85.611,0.90574814]
[1773199856850,11.67569587,85.648,85.612,11.68060552]
[1773199857053,11.67569587,85.648,85.613,0.90574814]
[1773199857358,11.6744691,85.657,85.621,0.90574814]
[1773199857778,3.1467342,85.65,85.621,0.90574814]
[1773199859953,11.67555955,85.649,85.621,0.90574814]
[1773199860154,11.67555955,85.649,85.622,11.67924131]
[1773199860346,11.67555955,85.649,85.623,0.90574814]
[1773199861452,11.67555955,85.649,85.618,11.67974148]
[1773199861856,3.1467342,85.64,85.61,0.90574814]
[1773199862054,40.86445842,85.649,85.59,3.1467342]
[1773199862055,3.1467342,85.62,85.593,0.90574814]
[1773199862252,40.86445842,85.649,85.594,0.90574814]
[1773199862458,3.1467342,85.62,85.594,0.90574814]
[1773199863644,11.67965054,85.619,85.594,0.90574814]
[1773199864846,3.1467342,85.62,85.596,0.90574814]
[1773199867855,11.67965054,85.619,85.596,0.90574814]
[1773199870743,3.1467342,85.61,85.562,0.90574814]
[1773199870965,3.1467342,85.6,85.571,0.90574814]
[1773199871167,3.1467342,85.61,85.571,0.90574814]
[1773199871761,11.68101484,85.609,85.572,11.68606553]
[1773199871961,11.68101484,85.609,85.573,0.90574814]
[1773199872160,3.1467342,85.6,85.573,0.90574814]
[1773199873565,3.14698305,85.6,85.573,0.90574814]
[1773199873773,3.14698305,85.58,85.56,1.00574814]
[1773199874273,3.14698305,85.59,85.56,1.00574814]
[1773199874848,3.14698305,85.59,85.561,0.90574814]
[1773199875044,3.14698305,85.6,85.561,0.90574814]
[1773199876079,3.14698305,85.59,85.562,11.68743133]
[1773199876269,3.14698305,85.59,85.563,0.90574814]
[1773199878480,11.6837444,85.589,85.564,0.90574814]
[1773199878857,40.89310541,85.589,85.564,0.90574814]
[1773199879474,11.6837444,85.589,85.564,0.90574814]
[1773199887560,3.14698305,85.58,85.564,0.90574814]
[1773199887755,40.89310541,85.589,85.564,0.90574814]
[1773199887970,3.14698305,85.58,85.564,0.90574814]
[1773199888161,40.89310541,85.589,85.564,0.90574814]
[1773199889275,3.14698305,85.58,85.56,0.1]
[1773199889781,3.14698305,85.58,85.56,1.00574814]
[1773199891261,11.68482488,85.582,85.562,0.90574814]
[1773199891978,11.68419828,85.586,85.562,0.90574814]
[1773199893784,11.68360952,85.59,85.564,0.90574814]
[1773199894762,3.14698305,85.59,85.565,11.68702156]
[1773199894961,3.14698305,85.59,85.566,0.90574814]
[1773199897778,11.68301358,85.595,85.568,0.90574814]
[1773199898181,98.58930955,85.598,85.568,0.90574814]
[1773199898362,11.68265242,85.597,85.568,0.90574814]
[1773199901164,11.68265242,85.597,85.57,0.90574814]
[1773199902286,98.58930955,85.598,85.57,0.90574814]
[1773199902473,11.68205445,85.602,85.571,0.90574814]
[1773199902967,3.14698305,85.6,85.571,0.90574814]
[1773199903787,3.14698305,85.6,85.572,11.68606553]
[1773199903982,3.14698305,85.6,85.573,0.90574814]
[1773199909892,3.14698305,85.6,85.574,11.68579241]
[1773199910092,3.14698305,85.6,85.575,0.90574814]
[1773199911311,11.68237946,85.599,85.575,0.90574814]
[1773199913301,3.14698305,85.6,85.577,0.90574814]
[1773199913502,11.68186186,85.603,85.577,0.90574814]
[1773199915074,11.68101484,85.609,85.577,0.90574814]
[1773199915496,11.68101484,85.609,85.579,0.90574814]
[1773199919406,11.68101484,85.609,85.581,0.90574814]
[1773199920606,0.74599999,85.629,85.601,0.90574814]
[1773199921398,0.74599999,85.629,85.603,0.90574814]
[1773199922105,29.18814436,85.652,85.611,0.90574814]
[1773199922311,3.14698305,85.65,85.611,0.90574814]
[1773199922901,11.67474169,85.655,85.621,0.90574814]
[1773199924114,3.14698305,85.65,85.623,0.90574814]
[1773199924411,3.14698305,85.65,85.612,0.90574814]
[1773199924792,3.14698305,85.64,85.612,0.90574814]
[1773199925209,3.14698305,85.65,85.612,0.90574814]
[1773199926216,40.85968782,85.659,85.612,0.90574814]
[1773199926217,3.14698305,85.64,85.612,0.90574814]
[1773199926812,3.14698305,85.64,85.614,0.90574814]
[1773199930117,29.1854913,85.659,85.616,0.90574814]
[1773199930322,3.14698305,85.65,85.616,0.90574814]
[1773199932623,3.14698305,85.65,85.618,0.90574814]
[1773199932624,11.67555955,85.649,85.618,0.90574814]
[1773199933708,3.14698305,85.64,85.618,0.90574814]
[1773199934108,3.14698305,85.63,85.6,14.82918724]
[1773199935625,3.14402211,85.63,85.6,14.8262263]
[1773199936109,3.14402211,85.63,85.601,0.886448]
[1773199937125,0.86821596,85.635,85.601,0.886448]
[1773199937328,11.67695726,85.639,85.601,0.886448]
[1773199937532,0.86883949,85.638,85.601,0.886448]
[1773199937821,3.14402211,85.63,85.603,0.886448]
[1773199939228,3.14402211,85.65,85.611,0.886448]
[1773199939406,14.81944534,85.65,85.621,0.84680424]
[1773199939824,14.81944534,85.65,85.623,0.84680424]
[1773199940525,15.68886493,85.65,85.623,0.84680424]
[1773199941926,15.68886493,85.65,85.625,0.84680424]
[1773199942528,4.0134417,85.65,85.625,0.84680424]
[1773199942726,11.67555955,85.649,85.625,0.84680424]
[1773199943728,12.54540379,85.649,85.625,0.84680424]
[1773199943934,0.86984424,85.648,85.625,0.84680424]
[1773199946339,3.14402211,85.64,85.625,0.84680424]
[1773199947430,0.87010884,85.646,85.627,0.84680424]
[1773199948728,3.14402211,85.65,85.629,0.84680424]
[1773199949132,0.87049636,85.649,85.629,0.84680424]
[1773199951532,0.87049636,85.649,85.631,0.84680424]
[1773199951846,3.14402211,85.65,85.631,0.84680424]
[1773199954047,3.14402211,85.65,85.632,11.67787742]
[1773199954343,4.01494301,85.65,85.633,0.84680424]
[1773199955442,3.14402211,85.65,85.633,0.84680424]
[1773199958026,0.8709209,85.649,85.621,40.87768487]
[1773199960140,0.8709209,85.649,85.624,0.84808811]
[1773199964438,0.8709209,85.649,85.626,0.84808811]
[1773199965940,0.8709209,85.649,85.628,0.84808811]
[1773199967143,0.82079856,85.655,85.628,0.84808811]
[1773199967447,0.82079856,85.673,85.641,0.84808811]
[1773199969035,0.82079856,85.673,85.643,0.84808811]
[1773199970237,0.88018291,85.671,85.643,0.84808811]
[1773199970438,0.88018291,85.669,85.643,0.84808811]
[1773199970640,0.88018291,85.659,85.638,0.80929122]
[1773199971650,0.88018291,85.659,85.616,3.69383402]
[1773199971651,0.88018291,85.676,85.641,0.80929122]
[1773199971854,0.88018291,85.676,85.639,11.67692289]
[1773199971855,0.88018291,85.676,85.651,0.80929122]
[1773199972039,3.14402211,85.68,85.651,0.80929122]
[1773199972929,11.67070539,85.685,85.651,0.80929122]
[1773199974055,1.59809254,85.684,85.653,0.80929122]
[1773199976666,0.85588138,85.683,85.655,0.80929122]
[1773199977566,0.85710388,85.669,85.65,11.6753565]
[1773199977771,0.74599999,85.684,85.651,0.89811534]
[1773199979948,0.74599999,85.684,85.653,0.89811534]
[1773199980968,12.41688615,85.684,85.653,0.89811534]
[1773199981142,3.14402211,85.68,85.653,0.89811534]
[1773199981759,46.66191467,85.724,85.652,11.6751506]
[1773199981760,0.36772613,85.71,85.656,0.80929122]
[1773199981943,0.36772613,85.71,85.65,3.14402211]
[1773199981944,3.34402211,85.7,85.671,0.80929122]
[1773199982549,3.14402211,85.71,85.671,0.80929122]
[1773199982755,3.14402211,85.71,85.681,0.80929122]
[1773199983761,11.66656944,85.715,85.681,0.80929122]
[1773199984054,3.14402211,85.71,85.683,0.80929122]
[1773199984558,0.24268306,85.709,85.683,0.80929122]
[1773199988152,0.25216234,85.707,85.683,0.80929122]
[1773199991663,0.25216234,85.707,85.684,11.67079034]
[1773199991851,0.25216234,85.707,85.685,0.80929122]
[1773199992253,11.66751521,85.709,85.685,0.80929122]
[1773199993353,0.26728515,85.708,85.685,0.80929122]
[1773199994378,11.66765841,85.707,85.685,0.80929122]
[1773199995552,0.27558493,85.706,85.685,0.80929122]
[1773199995759,0.27558493,85.699,85.661,0.80929122]
[1773199995967,40.83775742,85.705,85.661,0.80929122]
[1773199995968,0.27558493,85.689,85.661,0.80929122]
[1773200000565,0.29133281,85.679,85.656,0.92148676]
[1773200000759,0.29133281,85.679,85.644,0.92148676]
[1773200001269,0.29133281,85.679,85.643,40.86732132]
[1773200001270,11.96084029,85.694,85.661,0.92148676]
[1773200001981,0.29133281,85.694,85.661,0.92148676]
[1773200002157,59.47028945,85.74,85.65,3.13822508]
[1773200002158,11.66656944,85.715,85.681,0.92148676]
[1773200002359,3.33822508,85.74,85.701,0.92148676]
[1773200002360,0.29636479,85.738,85.701,0.92148676]
[1773200002558,0.2,85.74,85.713,0.92148676]
[1773200002873,0.29636479,85.738,85.713,0.92148676]
[1773200005471,11.96728429,85.737,85.713,0.92148676]
[1773200006481,11.96965782,85.737,85.713,0.92148676]
[1773200006681,11.6638479,85.735,85.713,0.92148676]
[1773200007984,29.15528608,85.748,85.716,0.92148676]
[1773200008373,11.66221558,85.747,85.716,0.92148676]
[1773200008579,3.13822508,85.74,85.716,0.92148676]
[1773200011188,3.13822508,85.74,85.71,3.13822508]
[1773200011189,1e-08,85.75,85.731,0.92148676]
[1773200011367,0.31756255,85.748,85.718,0.92148676]
[1773200011868,0.31756255,85.739,85.712,0.92148676]
[1773200012184,3.13822508,85.73,85.712,0.92148676]
[1773200012382,0.31756255,85.733,85.712,0.92148676]
[1773200012690,3.13822508,85.73,85.712,0.92148676]
[1773200013169,0.31756255,85.733,85.712,0.92148676]
[1773200013170,0.31979089,85.732,85.712,0.92148676]
[1773200013367,0.31979089,85.729,85.706,0.92148676]
[1773200013680,3.13822508,85.72,85.692,0.92148676]
[1773200013886,0.3219963,85.721,85.692,0.92148676]
[1773200014288,0.3219963,85.729,85.692,0.92148676]
[1773200014792,11.66480029,85.728,85.693,11.6695646]
[1773200014976,3.13822508,85.72,85.694,0.92148676]
[1773200015287,40.82680103,85.728,85.694,0.92148676]
[1773200015589,3.13822508,85.71,85.689,0.947109]
[1773200015973,40.82680103,85.728,85.689,0.947109]
[1773200016168,3.13822508,85.71,85.689,0.947109]
[1773200017285,11.66694691,85.713,85.689,0.947109]
[1773200017486,3.13822508,85.71,85.689,0.947109]
[1773200017693,11.66694691,85.713,85.689,0.947109]
[1773200017885,3.13822508,85.71,85.689,0.947109]
[1773200018088,11.66694691,85.713,85.689,0.947109]
[1773200018287,3.13822508,85.71,85.689,0.947109]
[1773200018497,40.82203923,85.738,85.689,0.947109]
[1773200018695,3.13822508,85.71,85.689,0.947109]
[1773200018898,40.82203923,85.738,85.689,0.947109]
[1773200019095,3.13822508,85.71,85.689,0.947109]
[1773200019297,3.13822508,85.73,85.691,0.947109]
[1773200019476,3.13822508,85.73,85.701,0.947109]
[1773200020800,14.80287297,85.73,85.703,0.947109]
[1773200022387,14.8235231,85.73,85.703,0.947109]
[1773200023083,3.13822508,85.72,85.703,0.947109]
[1773200023283,0.02065013,85.729,85.703,0.947109]
[1773200026100,0.02065013,85.729,85.705,0.947109]
[1773200026408,3.13822508,85.73,85.706,0.947109]
[1773200026902,78.95616132,85.739,85.709,0.96167936]
[1773200027084,3.13822508,85.73,85.709,0.96167936]
[1773200027283,40.81727853,85.748,85.709,0.96167936]
[1773200027481,3.13822508,85.73,85.709,0.96167936]
[1773200027683,40.81727853,85.748,85.709,0.96167936]
[1773200027904,3.13822508,85.73,85.709,0.96167936]
[1773200028101,40.81727853,85.748,85.709,0.96167936]
[1773200028303,3.13822508,85.73,85.709,0.96167936]
[1773200028492,3.13822508,85.74,85.711,0.96167936]
[1773200029109,40.81251893,85.758,85.71,14.8054751]
[1773200029305,3.13822509,85.75,85.711,0.96167936]
[1773200029510,3.13822509,85.75,85.71,14.8054751]
[1773200029511,11.66018858,85.762,85.731,0.96167936]
[1773200029884,11.66058372,85.759,85.731,0.96167936]
[1773200031902,11.66058372,85.759,85.733,0.96167936]
[1773200033207,11.66058372,85.759,85.716,0.96167936]
[1773200033208,3.13822508,85.74,85.716,0.96167936]
[1773200033389,40.81204304,85.759,85.711,0.96167936]
[1773200033595,3.13822508,85.75,85.721,0.96167936]
[1773200034891,11.66194357,85.749,85.723,0.96167936]
[1773200039313,11.66194357,85.749,85.72,3.13822508]
[1773200039314,11.66194357,85.749,85.725,0.96167936]
[1773200040399,11.69085012,85.749,85.725,0.96167936]
[1773200040601,0.02890655,85.748,85.725,0.96167936]
[1773200043712,0.02890655,85.748,85.727,0.96167936]
[1773200044018,0.2,85.76,85.73,3.13822508]
[1773200044019,11.66071969,85.758,85.73,3.13822508]
[1773200044218,11.66071969,85.758,85.731,0.96167936]
[1773200044594,11.66071969,85.758,85.731,11.66429488]
[1773200044923,11.66071969,85.758,85.732,0.96167936]